Cogmind - Beta 9.3 @@@ ROGUE MODE // 2020.01.06 @ 15:49:43 Player: Klin Result: Self-destructed Performance ------------- Evolutions (1) 500 Regions Visited (2) 400 Robots Destroyed (30) 150 Value Destroyed (556) 556 Prototype IDs (0) 0 Alien Tech Used (0) 0 Bonus (0) 0 TOTAL SCORE: 1606 Bonus ------- None Cogmind --------- Core Integrity 307/400 Matter 300/300 Energy 100/100 System Corruption 1% Temperature Cool (0) Movement Core (150) Ox2 Location -9/Materials Parts ------- > --- POWER (1) -------- (None) > --- PROPULSION (2) --- (None) > --- UTILITY (4) ------ Small Storage Unit Structural Scanner > --- WEAPON (2) ------- Assault Rifle Light Assault Rifle > --- INVENTORY (6) ---- Large Battery (300) Medium Matter Pod (55) Signal Interpreter Tractor Beam Peak State ------------ > --- POWER ------------ Ion Engine > --- PROPULSION ------- Aluminum Leg Aluminum Leg > --- UTILITY ---------- Small Storage Unit Medium Matter Pod Visual Processing Unit Terrain Scanner > --- WEAPON ----------- Assault Rifle Grenade Launcher > --- INVENTORY -------- Signal Interpreter Tractor Beam Light Assault Rifle [Rating: 10] Favorites ----------- Power Light Ion Engine Engine Light Ion Engine Propulsion Aluminum Leg Leg Aluminum Leg Utility Small Storage Unit Device Terrain Scanner Storage Small Storage Unit Processor Visual Processing Unit Weapon Assault Rifle Energy Gun EM Pulse Gun Ballistic Gun Assault Rifle Launcher Grenade Launcher Build | -11 -10 -9 ------- Run | Scr Mat Mat Slots Evolved 2 | . . 2 Power . | . . . Propulsion . | . . . Utility 2 | . . 2 Weapon . | . . . Parts Attached 16 | 6 5 5 Power 3 | 1 1 1 Engine 3 | 1 1 1 Core . | . . . Reactor . | . . . Propulsion 3 | 2 1 . Treads . | . . . Leg 3 | 2 1 . Wheel . | . . . Hover . | . . . Flight . | . . . Utility 5 | 1 1 3 Device 2 | . . 2 Storage 2 | 1 1 . Processor 1 | . . 1 Hackware . | . . . Protection . | . . . Artifact . | . . . Weapon 5 | 2 2 1 Energy Gun 1 | 1 . . Energy Cannon . | . . . Ballistic Gun 3 | 1 1 1 Ballistic Cannon . | . . . Launcher 1 | . 1 . Special Weapon . | . . . Impact Weapon . | . . . Slashing Weapon . | . . . Piercing Weapon . | . . . Special Melee Weapon . | . . . Unidentified Prototypes . | . . . Parts Lost 9 | . 2 7 Power 1 | . . 1 Propulsion 3 | . 1 2 Utility 2 | . . 2 Weapon 3 | . 1 2 Highest Loss Streak 2 | . 2 2 Average Slot Usage (%) 90 | . 96 79 Engine 12 | . 14 8 Leg 20 | . 27 7 Device 7 | . . 20 Storage 20 | . 25 11 Processor 3 | . . 10 Energy Gun 3 | . 3 1 Ballistic Gun 14 | . 13 16 Launcher 7 | . 10 2 Naked Turns . | . . . Heaviest Build 17 | 11 16 17 Greatest Support 20 | 20 20 20 Greatest Overweight (x) 4 | 2 1 4 Average Overweight (x) . | . . 1 Largest Inventory Capacity 6 | 6 6 6 Average Capacity 5 | 5 6 6 Most Carried 6 | 4 6 6 Average Carried 4 | 1 5 4 Final Capacity 6 | 6 6 6 Final Carried 5 | 1 5 4 Class Distribution -------------------- 100% | Mutant Dominant Class ---------------- Mutant | -10/Materials Mutant | -9/Materials Resources | -11 -10 -9 ----------- Run | Scr Mat Mat Matter Collected 706 | 149 243 314 Remotely . | . . . Salvage Created 762 | . 398 364 Parts 68 | . 46 22 Haulers Intercepted 1 | . 1 . Recyclers Shooed . | . . . Parts Field Recycled . | . . . Retrieved Matter . | . . . Parts Self-Destructed . | . . . Prevented . | . . . Kills | -11 -10 -9 ------- Run | Scr Mat Mat Combat Hostiles Destroyed 20 | . 12 8 Guns 11 | . 3 8 AOE 9 | . 9 . Classes Destroyed 9 | . 7 2 Worker 3 | . 2 1 Builder 2 | . 2 . Hauler 1 | . 1 . Recycler 2 | . 1 1 Watcher 2 | . 2 . Swarmer 10 | . 6 4 Grunt 7 | . 6 1 Brawler 1 | . . 1 Sentry 2 | . . 2 Best Kill Streak 6 | . 6 5 Combat Bots Only 4 | . 3 4 Max Kills in Single Turn 3 | . 3 1 Gunslinging . | . . . Exploded 3 | . 3 . Melee . | . . . Uniques/NPCs Destroyed . | . . . Combat | -11 -10 -9 -------- Run | Scr Mat Mat Damage Taken 887 | . 464 423 Core 192 | . 99 93 Absorbed by Shields . | . . . Core Remaining (%) 80 | 100 60 . Volleys Fired 51 | . 23 28 Largest 2 | . 2 2 Hottest 60 | . 60 50 Shots Fired 95 | . 42 53 Gun 79 | . 26 53 Cannon . | . . . Launcher 16 | . 16 . Special . | . . . Kinetic 67 | . 21 46 Thermal 7 | . . 7 Explosive 16 | . 16 . Electromagnetic 5 | . 5 . Robot Hit Streak 6 | . 3 6 Robot Miss Streak 4 | . 2 4 Penetration Max . | . . . Secondary Targets 2 | . . 2 Max Gunslinging Chain 1 | . . 1 Shots Hit Robots 47 | . 19 28 Core Hits 41 | . 25 16 Critical Hits . | . . . Critical Kills . | . . . Critical Parts Destroyed . | . . . Melee Attacks . | . . . Impact . | . . . Slashing . | . . . Piercing . | . . . Sneak Attacks . | . . . Combat Hostiles . | . . . Follow-up Attacks . | . . . Damage Inflicted 1382 | . 1084 298 Guns 444 | . 147 297 Cannons . | . . . Explosions 937 | . 937 . Melee . | . . . Ramming 1 | . . 1 Kinetic 356 | . 96 260 Thermal 37 | . . 37 Explosive 937 | . 937 . Electromagnetic 51 | . 51 . Impact . | . . . Slashing . | . . . Piercing . | . . . Highest Corruption 8 | . 8 1 Average Corruption 7 | . 8 1 Corruption Purged . | . . . Effects 7 | . 7 . Matter Fused 2 | . 2 . Heat Flow Errors 1 | . 1 . Energy Discharges 1 | . 1 . Targeting Errors 3 | . 3 . Overload Shots . | . . . Overflow Damage 13 | . 13 . Projectiles . | . . . Explosions 13 | . 13 . Melee . | . . . Knockbacks . | . . . Impact . | . . . Kinetic . | . . . Secondary . | . . . Self-Inflicted Damage 62 | . 62 . Shots 2 | . 2 . Rammed 1 | . . 1 Targets Rammed 1 | . . 1 Kicked . | . . . Crushed . | . . . Highest Temperature 208 | . 208 6 Average Temperature 56 | . 71 3 Received Heat Transfer 99 | . 36 63 Siege Activations . | . . . Robots Corrupted . | . . . Combat Hostiles . | . . . Parts Fried . | . . . Impact Corruptions . | . . . Robots Melted . | . . . Combat Hostiles . | . . . Parts Melted . | . . . Heat Transferred 148 | . . 148 Parts Sabotaged . | . . . Parts Stolen . | . . . Parts Stripped . | . . . Power Chain Reactions . | . . . Missiles Intercepted . | . . . Alert | -11 -10 -9 ------- Run | Scr Mat Mat Peak Influence 265 | . 224 265 Average Influence 112 | . 104 148 Maximum Alert Level 1 | . 1 1 Low Security (%) 82 | 100 82 78 Level 1 17 | . 17 21 Level 2 . | . . . Level 3 . | . . . Level 4 . | . . . Level 5 . | . . . High Security . | . . . Max Security . | . . . Squads Dispatched 2 | . 2 . Investigation 1 | . 1 . Extermination . | . . . Reinforcement 1 | . 1 . Assault . | . . . Garrison . | . . . Intercept . | . . . Construction Impeded . | . . . Haulers Reinforced . | . . . Stealth | -11 -10 -9 --------- Run | Scr Mat Mat Distress Signals . | . . . Communications Jammed . | . . . Distress Signals . | . . . Times Spotted 32 | . 18 14 Peak Tracking Total 4 | . 3 4 Tactical Retreats 1 | . 1 . Traps | -11 -10 -9 ------- Run | Scr Mat Mat Traps Triggered . | . . . Indirectly . | . . . Trap Hack Attempts . | . . . Triggered . | . . . Disarmed 6 | . 6 . Reprogrammed . | . . . Reused . | . . . Traps Extracted . | . . . Installed . | . . . Triggered . | . . . Machines | -11 -10 -9 ---------- Run | Scr Mat Mat Machines Disabled 2 | . 2 . Max in Single Turn 1 | . 1 . Machines Sabotaged . | . . . Garrisons Compromised . | . . . Overloaded Fab Kills . | . . . Fab Network Shutdowns . | . . . Hacking | -11 -10 -9 --------- Run | Scr Mat Mat Machines Accessed 5 | . 4 1 Terminals 3 | . 3 . Fabricators . | . . . Repair Stations 1 | . . 1 Recycling Units 1 | . 1 . Scanalyzers . | . . . Garrison Access . | . . . Total Hacks 20 | . 16 4 Successful 16 | . 13 3 Failed 4 | . 3 1 Catastrophic . | . . . Database Lockouts . | . . . Manual . | . . . Terminals 14 | . 14 . Fabricators . | . . . Repair Stations 4 | . . 4 Recycling Units 2 | . 2 . Scanalyzers . | . . . Garrison Access . | . . . Terminal Hacks 11 | . 11 . Record 8 | . 8 . Alert Level 1 | . 1 . Disarm Traps 1 | . 1 . Dispatch Records 1 | . 1 . Fabricator Hacks . | . . . Repair Station Hacks 3 | . . 3 Scan Component 1 | . . 1 Repair 1 | . . 1 Refit 1 | . . 1 Recycling Unit Hacks 2 | . 2 . Report Inventory 1 | . 1 . Retrieve Components 1 | . 1 . Scanalyzer . | . . . Garrison Access Hacks . | . . . Unauthorized Hacks . | . . . Terminals . | . . . Fabricators . | . . . Repair Stations . | . . . Recycling Units . | . . . Scanalyzers . | . . . Garrison Access . | . . . Data Cores Recovered . | . . . Used . | . . . Hacking Detections 2 | . 2 . Full Trace Events 1 | . 1 . Feedback Events . | . . . Feedback Blocked . | . . . Robot Schematics Acquired . | . . . Robots Built . | . . . Matter . | . . . Time . | . . . Total Robot Build Rating . | . . . Part Schematics Acquired . | . . . Parts Built . | . . . Matter . | . . . Time . | . . . Total Part Build Rating . | . . . Parts Repaired 1 | . . 1 Time 26 | . . 26 Parts Recycled . | . . . Recycled Matter . | . . . Retrieved Matter . | . . . Retrieved Components 3 | . 3 . Parts Scanalyzed . | . . . Part Schematics Acquired . | . . . Parts Damaged . | . . . Bothacking | -11 -10 -9 ------------ Run | Scr Mat Mat Used RIF Installer . | . . . Robots Hacked . | . . . Non-combat . | . . . Combat . | . . . Robot Hacks Applied . | . . . Relay Couplers Released . | . . . Robots Rewired . | . . . Allies Hacked . | . . . Hacks Repelled . | . . . Allies | -11 -10 -9 -------- Run | Scr Mat Mat Total Allies . | . . . Largest Group . | . . . Highest-Rated Group . | . . . Highest-Rated Ally . | . . . Total Orders . | . . . Ally Attacks . | . . . Total Damage . | . . . Kills . | . . . Allies Corrupted . | . . . Allies Melted . | . . . Intel | -11 -10 -9 ------- Run | Scr Mat Mat Robot Analysis Total . | . . . Derelict Logs Recovered . | . . . Drone Launches . | . . . Drone Recoveries . | . . . Exploration | -11 -10 -9 ------------- Run | Scr Mat Mat Turns Passed 1091 | 61 682 348 Spaces Moved 677 | 47 488 142 Core 82 | 22 . 60 Treads . | . . . Legs 595 | 25 488 82 Wheels . | . . . Hover . | . . . Flight . | . . . Fastest Speed 50 | 50 120 120 Average Speed 128 | 104 120 163 Slowest Speed 250 | 150 150 250 Overloaded Moves . | . . . Propulsion Burnouts . | . . . Robots Hopped . | . . . Cave-ins Triggered 1 | . 1 . Exploration Rate (%) 29 | 3 64 20 Regions Visited 2 Branch Regions . Pre-discovered Areas . | . . . Known Exits Taken . | . . . Unknown Exits Taken 2 | 1 1 . Scrap Searched . | . . . Spaces Dug . | . . . Terrain Destroyed 68 | . 68 . Melee . | . . . Projectile . | . . . AOE 68 | . 68 . Actions | -11 -10 -9 --------- Run | Scr Mat Mat Total 809 | 59 541 209 Wait 37 | . 10 27 Move 675 | 46 487 142 Hop . | . . . Pick Up 22 | 7 11 4 Fast Attach 1 | . 1 . Attach 12 | 6 2 4 Detach . | . . . Swap 3 | . 2 1 Drop 7 | . 5 2 Fire 51 | . 23 28 Melee . | . . . Ram . | . . . Kick 1 | . . 1 Crush . | . . . Escape Stasis . | . . . Rewire . | . . . Trap . | . . . Miscellaneous . | . . . Route ------- -11/Scrapyard -10/Materials (discovered 3 exits: *Mat x2 / [*Min]) -9/Materials History --------- Turn | Location | Event 9 | -11/Scrapyard | Discovered new exit (range 16) 62 | -11/Scrapyard | Entered Materials 282 | -10/Materials | Discovered new exit (range 15) 310 | -10/Materials | Build established: Mutant 385 | -10/Materials | Discovered new exit (range 15) 524 | -10/Materials | Discovered new exit (range 13) 627 | -10/Materials | Crushed by falling debris 744 | -10/Materials | Entered another Materials area 744 | -9/Materials | Evolved 2 slots: Utility x2 866 | -9/Materials | Repaired Ion Engine 1092 | -9/Materials | Self-destructed Last Messages --------------- K-01 Serf cleans the Machine. K-01 Serf collects debris. K-01 Serf cleans the Electrolysis Chamber. C-30 ARC bursts open, deploying its payload. B-36 Bruiser unfolds itself. K-01 Serf cleans the Terminal. K-01 Serf collects debris. Terrain Scanner destroyed. Visual Processing Unit destroyed. System corrupted by crushing effect (+1). K-01 Serf cleans the Terminal. B-36 Bruiser destroyed. K-01 Serf cleans the Terminal. G-34 Mercenary destroyed. K-01 Serf collects debris. C-30 ARC bursts open, deploying its payload. S-10 Pest unfolds itself. K-01 Serf collects debris. K-01 Serf cleans the Terminal. Acquired 60 matter. Map ----- +----------------------------------------------------+ | ?????????????????????????????????????????????????? | | ?????????????????????????????????????????????????? | | ?????????????????????????????????????????????????? | | ?????????????????????????????????????????????????? | | ?????????????????????????????????????????????????? | | ?????????????????????????????????????????????????? | | ????????????????????????????????????????????????? | | ????????????????????????????????????????????????? | | #???????????????????????????????????????????????? | | ??????? ??? ??? ??????????????????????????? | | ??????? ?? ?? ??????????????????????????? | | ??????? ? ? ?????????????????????????? | | ?? ???? "?" "?" "??? #????????????????????? | | ??????? """ """ ""?? "????????????????????? | | #???????# """ """ ""? T"???????????????????? | | #???? ?# % k"????????????????????? | | + ??????+ k#????????????????????? | | # ??????# """ """ """ #?####???????????????? | | #???????# """ """s """ ## ???????????????? | | #???"???# """ """s """ % ????????????????? | | #????#??# ss ?????????????????? | | ##???#??# ??????????????????? | | =#??#???# """ """ " =#????? ??????????????? | | ######## """ """ T=k##???????????????????? | | """ """ "[k#????????????????????? | | [ * !@/k#????????????????????? | | = =* #????????????????????? | | ################+########+##?#??????????????????? | | [##?#???#???# #? ? ????????????????????? | | #??##??????# "" """ #???? ""???????????????????? | | ##########?# "" """ #??? """??????????????????? | | # #?# "T """ # ?"??""" +????????????????? | | # """ #?# "" #?????""" #????????????????? | | # """ ### "" #? ????"" ?????????????????? | | # """ #?# ! !! #?????? ??????????????????? | | + #?# ! = !! #??????????????????????????? | | # """ #?#### ######??????????????????????????? | | # """ #???####??????? ??????????????????????? | | # """ #??????????????????????????????????????? | | # #???#????#?#???????????????????????????? | | ##########??????????????????????????????????????? | | #???????????????????????????????????????????????? | | #???????????????????????????????????????????????? | | #???????????????????????????????????????????????? | | #?????#?????????????????????????????????????????? | | #???????????????????????????????????????????????? | | #???????????????????????????????????????????????? | | #???????????????????????????????????????????????? | | #???????????????????????????????????????????????? | | #????##?#???????????????????????????????????????? | +----------------------------------------------------+ Best States ------------- Heat Dissipation 28 Energy Generation 10 Energy Capacity 250 Matter Stores 300 Matter Capacity 400 Sight Range 18 Terrain Scan Range 14 Terrain Scan Density 10 Evasion (%) 50 Item Schematics ----------------- None Robot Schematics ------------------ None Fabricated ------------ Nothing Alien Tech Used ----------------- None Achievements -------------- Unlikely Earthworm Challenges ------------ None Game ------ Seed CombatFlakPrototype Manual? 0 Play Time 00:20:18 Cumulative 4.7 hours Start 2020.01.06 @ 13:25:06 End 2020.01.06 @ 15:49:43 Sessions 1 Manual Loads 0 Difficulty Rogue Special Mode None Game No. 16 Rogue 16 Adventurer 0 Explorer 0 Win Type - Total 0 Types 0/0/0/0/0/0/0 Lore% 3 Gallery% 10 Achievement% 8 Wizard Run 0 Options --------- ASCII 0 Keyboard 0 Movement Numpad Keybinds 0 Fullscreen 1 Font 18/SmallcapsGlow Map View 76x50 Tactical HUD 0 Map Filters NONE Filters NONE Steam 1 RUN: bc540639-d9ba-4c7d-9663-3f9d622c95fd